bitfinex/quotes_SOLUSD_20220226
["timestamp","ask_amount","ask_price","bid_price","bid_amount"]
[1645839670315,28.90923744,93.686,93.606,59.3258099]
[1645839670514,3.98947073,93.685,93.606,59.3258099]
[1645839670715,1.4098222,93.684,93.606,59.3258099]
[1645839671016,22.9676,93.69,93.607,106.0]
[1645839671416,22.9676,93.69,93.606,59.3258099]
[1645839671618,22.9676,93.69,93.61,16.0196]
[1645839672218,1.79075037,93.689,93.61,16.0196]
[1645839673217,1.41660296,93.688,93.61,16.0196]
[1645839673516,12.08932027,93.687,93.61,16.0196]
[1645839673719,1.8021327,93.686,93.606,59.3258099]
[1645839674117,1.44219442,93.684,93.606,59.3258099]
[1645839674518,24.83500463,93.683,93.606,59.3258099]
[1645839674718,1.42851705,93.682,93.606,59.3258099]
[1645839675121,24.21028125,93.681,93.606,59.3258099]
[1645839675318,1.64574825,93.68,93.606,59.3258099]
[1645839675720,24.83500463,93.679,93.606,59.3258099]
[1645839675920,1.66980673,93.678,93.606,59.3258099]
[1645839676721,1.66980673,93.678,93.59,16.023]
[1645839676722,1.79133149,93.676,93.59,16.023]
[1645839676922,1.85907274,93.674,93.582,22.7407]
[1645839677123,4.272,93.673,93.57,16.0265]
[1645839677324,52.96905134,93.673,93.57,16.0265]
[1645839677726,1.72742087,93.671,93.571,46.54015607]
[1645839677924,5.99942087,93.671,93.571,46.54015607]
[1645839678124,1.47813292,93.669,93.571,46.54015607]
[1645839678524,48.69705134,93.668,93.572,106.0]
[1645839678723,48.69705134,93.668,93.571,46.54015607]
[1645839678724,1.7513093,93.667,93.571,46.54015607]
[1645839678924,4.31903132,93.667,93.571,46.54015607]
[1645839679127,1.68874647,93.666,93.571,46.54015607]
[1645839679526,1.85747583,93.664,93.571,46.54015607]
[1645839679927,1.59240883,93.663,93.571,46.54015607]
[1645839680329,22.7227,93.662,93.571,46.54015607]
[1645839680627,1.56715109,93.661,93.571,46.54015607]
[1645839682429,22.0258898,93.66,93.571,46.54015607]
[1645839682630,1.84189322,93.659,93.571,46.54015607]
[1645839683029,24.83500463,93.658,93.571,46.54015607]
[1645839684831,4.18571597,93.657,93.563,23.9776]
[1645839685032,4.18571597,93.657,93.546,16.3419]
[1645839685231,8.27662629,93.656,93.546,16.3419]
[1645839685435,52.97005134,93.656,93.534,23.1905]
[1645839685632,27.40272665,93.655,93.534,23.1905]
[1645839685832,5.84306624,93.654,93.535,48.17462438]
[1645839686034,54.54011758,93.654,93.535,48.17462438]
[1645839686232,50.2776793,93.653,93.535,48.17462438]
[1645839686434,5.96852407,93.652,93.535,48.17462438]
[1645839686732,1.76144662,93.649,93.535,48.17462438]
[1645839686933,1.74233247,93.647,93.535,71.78292438]
[1645839687133,4.273,93.646,93.535,71.78292438]
[1645839687334,31.67572665,93.646,93.535,71.78292438]
[1645839687535,1.64883692,93.644,93.535,71.78292438]
[1645839687734,4.273,93.643,93.535,71.78292438]
[1645839687937,31.67572665,93.643,93.535,71.78292438]
[1645839688237,1.42150027,93.641,93.535,71.78292438]
[1645839688438,4.274,93.64,93.535,71.78292438]
[1645839688645,31.67672665,93.64,93.535,71.78292438]
[1645839688838,27.40272665,93.639,93.535,71.78292438]
[1645839689035,5.7228969,93.638,93.535,48.17462438]
[1645839689236,8.29061892,93.638,93.535,48.17462438]
[1645839689436,25.22442734,93.637,93.535,48.17462438]
[1645839689636,111.71484962,93.636,93.5,7.58]
[1645839689837,1.59904728,93.635,93.5,7.58]
[1645839690036,4.274,93.634,93.5,7.58]
[1645839690337,19.08708722,93.634,93.5,7.58]
[1645839690538,16.0361,93.63,93.5,7.58]
[1645839690736,5.82089619,93.629,93.501,52.81583214]
[1645839690937,40.38241191,93.629,93.501,52.81583214]
[1645839691137,4.38421792,93.628,93.502,22.7112]
[1645839691337,4.275,93.627,93.502,22.7112]
[1645839691537,28.13704671,93.627,93.502,22.2112]
[1645839691739,16.039,93.61,93.502,22.2112]
[1645839692038,1.4596757,93.608,93.502,22.2112]
[1645839692236,1.4596757,93.608,93.502,128.2112]
[1645839692438,2.56772202,93.607,93.502,128.2112]
[1645839693640,4.275,93.606,93.502,128.2112]
[1645839694039,2.56772202,93.605,93.502,128.2112]
[1645839694539,47.661,93.609,93.511,106.0]
[1645839694739,47.661,93.609,93.512,2.54607712]
[1645839694938,47.661,93.609,93.513,106.0]
[1645839695139,47.661,93.609,93.513,108.86292427]
[1645839695341,47.661,93.609,93.514,5.26586158]
[1645839695740,47.661,93.609,93.515,2.86292427]
[1645839695940,47.661,93.609,93.521,106.0]
[1645839696140,47.661,93.609,93.531,106.0]
[1645839696341,47.661,93.609,93.532,162.27649727]
[1645839696541,47.661,93.609,93.532,56.27649727]
[1645839699348,4.08818534,93.608,93.517,23.7841]
[1645839699544,8.36318534,93.608,93.517,23.7841]
[1645839699744,16.0411,93.6,93.517,23.7841]
[1645839699944,5.89073828,93.599,93.517,23.7841]
[1645839700146,21.77475389,93.599,93.517,23.7841]
[1645839700444,19.37433862,93.598,93.517,23.7841]
[1645839700648,5.78773545,93.597,93.517,23.7841]
[1645839700843,41.90148069,93.597,93.517,23.7841]
[1645839701045,19.37390128,93.596,93.517,23.7841]
[1645839701245,1.77527532,93.595,93.517,23.7841]
[1645839701447,16.043,93.59,93.517,23.7841]
[1645839701647,111.92452678,93.589,93.517,23.7841]
[1645839702045,12.71,93.58,93.517,23.7841]
[1645839702244,5.72447691,93.579,93.517,0.0041]
[1645839702445,106.0,93.578,93.444,43.14085798]
[1645839702651,106.0,93.576,93.444,43.14085798]
[1645839702847,106.0,93.574,93.444,43.14085798]
[1645839703149,1.816943,93.559,93.444,43.14085798]
[1645839703354,1.78517612,93.539,93.444,43.14085798]
[1645839703548,1.84996467,93.537,93.444,43.14085798]
[1645839703746,4.277,93.536,93.444,43.14085798]
[1645839704347,1.84996467,93.537,93.444,43.14085798]
[1645839704749,1.84996467,93.537,93.445,106.0]
[1645839705250,1.84996467,93.537,93.445,105.5]
[1645839705548,1.84996467,93.537,93.444,43.14085798]
[1645839705752,2.56772202,93.536,93.444,43.14085798]
[1645839707250,4.06804564,93.536,93.444,43.14085798]
[1645839707555,2.56772202,93.535,93.444,43.14085798]
[1645839707754,2.56772202,93.535,93.445,106.0]
[1645839707953,1.50032362,93.536,93.445,106.0]
[1645839710175,26.38408361,93.536,93.445,106.0]
[1645839710375,26.38408361,93.536,93.444,43.14085798]
[1645839710879,24.84458533,93.535,93.444,43.14085798]
[1645839713282,26.74743627,93.534,93.444,43.14085798]
[1645839713584,1.53853945,93.533,93.444,43.14085798]
[1645839713779,1.57843619,93.532,93.444,43.14085798]
[1645839713979,42.12484573,93.532,93.444,43.14085798]
[1645839714181,1.40137179,93.531,93.444,43.14085798]
[1645839714380,39.23278051,93.531,93.444,43.14085798]
[1645839714579,43.50468201,93.53,93.444,43.14085798]
[1645839714781,1.61780254,93.529,93.444,43.14085798]
[1645839714979,39.23278051,93.529,93.444,43.14085798]
[1645839715179,37.16312052,93.528,93.444,43.14085798]
[1645839715379,1.40201462,93.527,93.444,43.14085798]
[1645839715580,28.81432197,93.527,93.444,43.14085798]
[1645839715780,16.0549,93.52,93.42,16.0514]
[1645839715982,5.65762248,93.519,93.381,24.7227]
[1645839716184,1.87026007,93.517,93.381,24.7227]
[1645839716383,4.28,93.516,93.365,23.8358]
[1645839716583,22.8196239,93.516,93.337,2.93360099]
[1645839716784,29.03518871,93.515,93.341,44.30563549]
[1645839716983,16.0583,93.5,93.342,106.0]
[1645839717182,12.71,93.49,93.343,2.35500224]
[1645839717384,24.1517,93.489,93.343,2.35500224]
[1645839717582,6.027158,93.488,93.343,2.35500224]
[1645839717981,53.87168186,93.487,93.343,2.35500224]
[1645839718182,5.72719978,93.486,93.343,2.35500224]
[1645839718484,16.064,93.47,93.352,2.47709198]
[1645839718684,1.6015973,93.469,93.352,2.47709198]
[1645839719182,111.76250056,93.484,93.353,24.57934583]
[1645839719382,31.49756935,93.468,93.353,21.71642156]
[1645839719586,6.01401467,93.467,93.341,44.30563549]
[1645839719783,65.02370434,93.467,93.341,44.30563549]
[1645839719984,18.53958336,93.466,93.341,44.30563549]
[1645839720184,6.04600333,93.465,93.341,44.30563549]
[1645839720485,16.0694,93.44,93.341,44.30563549]
[1645839720685,51.6964,93.439,93.341,44.30563549]
[1645839720887,1.52318646,93.438,93.341,44.30563549]
[1645839721086,44.9278326,93.438,93.341,44.30563549]
[1645839721289,1.80886539,93.437,93.341,44.30563549]
[1645839721487,70.53471561,93.437,93.341,44.30563549]
[1645839721685,56.14048442,93.436,93.341,44.30563549]
[1645839721884,1.57679123,93.435,93.341,44.30563549]
[1645839722084,30.53298195,93.435,93.341,44.30563549]
[1645839722284,30.50834023,93.434,93.341,44.30563549]
[1645839722484,16.0709,93.43,93.342,106.0]
[1645839722885,25.60688301,93.433,93.342,106.0]
[1645839723085,25.60688301,93.43,93.342,106.0]
[1645839723286,1.35976552,93.429,93.342,106.0]
[1645839723485,19.11680917,93.43,93.343,2.63518875]
[1645839723786,28.95619072,93.434,93.343,2.63518875]
[1645839723988,25.04440995,93.433,93.343,2.63518875]
[1645839725084,26.38850924,93.434,93.343,2.63518875]
[1645839725684,47.4134,93.439,93.343,2.63518875]
[1645839726085,25.04440995,93.433,93.343,2.63518875]
[1645839727687,2.56768148,93.432,93.343,2.63518875]
[1645839727885,4.283,93.431,93.343,2.63518875]
[1645839728086,29.32740995,93.431,93.343,2.63518875]
[1645839728286,25.04440995,93.43,93.343,2.63518875]
[1645839729288,4.01617726,93.429,93.341,44.30563549]
[1645839729487,4.283,93.428,93.341,44.30563549]
[1645839729687,55.99940636,93.428,93.341,44.30563549]
[1645839729886,29.01538679,93.427,93.341,44.30563549]
[1645839730188,29.32211522,93.426,93.341,44.30563549]
[1645839730490,29.32211522,93.426,93.311,3.09085378]
[1645839730491,1.51734085,93.425,93.311,3.09085378]
[1645839730688,5.85642993,93.424,93.292,2.76183489]
[1645839730886,57.60872393,93.424,93.292,2.76183489]
[1645839731087,29.29800459,93.423,93.292,2.76183489]
[1645839731287,16.0723,93.42,93.293,46.02070999]
[1645839731487,4.284,93.419,93.295,2.77155706]
[1645839731687,8.3892594,93.419,93.295,2.77155706]
[1645839731892,57.57387192,93.419,93.3,16.0725]
[1645839732086,43.93040828,93.418,93.293,46.02070999]
[1645839732298,5.64972257,93.417,93.282,3.09950499]
[1645839732486,106.0,93.416,93.263,2.72322805]
[1645839732689,16.0738,93.41,93.263,2.72322805]
[1645839732886,1.39300707,93.409,93.263,2.72322805]
[1645839733086,4.285,93.408,93.263,2.72322805]
[1645839733289,63.52651185,93.408,93.265,106.0]
[1645839733585,19.46982154,93.407,93.266,2.80107891]
[1645839733786,5.86513897,93.406,93.266,2.80107891]
[1645839733989,1.8623844,93.405,93.266,2.80107891]
[1645839734287,4.285,93.404,93.266,2.80107891]
[1645839734489,16.0757,93.4,93.271,106.0]
[1645839734686,16.0757,93.4,93.272,2.33259272]
[1645839734886,18.64338148,93.4,93.272,2.33259272]
[1645839735092,29.32940995,93.399,93.273,106.0]
[1645839735286,29.32940995,93.399,93.274,2.45720019]
[1645839735487,29.32940995,93.399,93.291,106.0]
[1645839735687,25.04440995,93.398,93.292,2.31164989]
[1645839735987,4.285,93.397,93.294,106.0]
[1645839736186,25.04440995,93.398,93.295,2.26367124]
[1645839736787,4.285,93.407,93.301,106.0]
[1645839736986,49.1155,93.408,93.302,2.79062995]
[1645839737687,25.04440995,93.407,93.302,2.79062995]
[1645839738089,1.4905657,93.406,93.294,2.96276412]
[1645839738287,4.05824718,93.406,93.294,2.96276412]
[1645839738487,3.03624634,93.405,93.31,16.0705]
[1645839738689,3.03624634,93.405,93.311,2.56930156]
[1645839738887,49.1155,93.408,93.311,2.56930156]
[1645839738888,4.284,93.407,93.311,2.56930156]
[1645839739089,4.284,93.407,93.31,16.0705]
[1645839739090,26.70788405,93.404,93.293,46.06785048]
[1645839739288,1.85177047,93.403,93.294,2.47798176]
[1645839739490,5.94507847,93.402,93.294,2.47798176]
[1645839739692,30.08528104,93.402,93.294,2.47798176]
[1645839739891,1.81729076,93.401,93.294,2.47798176]
[1645839740091,28.52517481,93.401,93.294,2.47798176]
[1645839740291,1.5933589,93.399,93.293,46.06785048]
[1645839740591,4.285,93.398,93.293,46.06785048]
[1645839740889,4.13208122,93.397,93.293,46.06785048]
[1645839741092,4.285,93.396,93.293,46.06785048]
[1645839741292,16.0788,93.38,93.293,46.06785048]
[1645839741490,5.71561629,93.379,93.293,46.06785048]
[1645839741891,6.85268148,93.379,93.293,46.06785048]
[1645839742091,32.21443061,93.378,93.293,46.06785048]
[1645839742293,5.9262948,93.377,93.293,46.06785048]
[1645839742493,16.0824,93.36,93.254,2.52892312]
[1645839742692,6.0954384,93.359,93.254,2.52892312]
[1645839742891,6.0954384,93.359,93.241,2.84128129]
[1645839743091,1.78370495,93.358,93.242,2.99194324]
[1645839743295,1.78370495,93.358,93.231,2.65496628]
[1645839743296,6.13222618,93.357,93.231,2.65496628]
[1645839743493,1.51841974,93.355,93.241,45.56656949]
[1645839743693,4.287,93.354,93.241,45.56656949]
[1645839744094,31.41118913,93.353,93.241,45.56656949]
[1645839744293,4.287,93.352,93.241,45.56656949]
[1645839744595,1.85797328,93.349,93.241,45.56656949]
[1645839744796,4.287,93.348,93.241,45.56656949]
[1645839744993,1.36694326,93.346,93.241,45.56656949]
[1645839745193,4.287,93.345,93.241,45.56656949]
[1645839745694,1.3999832,93.343,93.241,45.56656949]
[1645839745895,4.287,93.342,93.241,45.56656949]
[1645839746094,42.03943339,93.342,93.241,45.56656949]
[1645839746296,4.01897664,93.341,93.241,45.56656949]
[1645839746496,20.3734,93.34,93.241,45.56656949]
[1645839746696,1.86663437,93.339,93.241,45.56656949]
[1645839746899,4.287,93.338,93.241,45.56656949]
[1645839747195,31.64038522,93.338,93.241,45.56656949]
[1645839747397,25.59827364,93.337,93.241,45.56656949]
[1645839747594,6.04850239,93.336,93.241,45.56656949]
[1645839747796,31.75303516,93.336,93.241,45.56656949]
[1645839747995,4.34824466,93.335,93.241,45.56656949]
[1645839748306,4.34824466,93.335,93.22,16.0869]
[1645839748307,16.0881,93.33,93.222,2.42653352]
[1645839748495,107.71882378,93.328,93.195,2.71703718]
[1645839748694,1.45300434,93.326,93.195,2.71703718]
[1645839748896,4.289,93.325,93.195,2.71703718]
[1645839749094,6.856497,93.325,93.195,2.71703718]
[1645839749296,1.79455336,93.323,93.196,59.13297994]
[1645839749495,4.289,93.322,93.196,59.13297994]
[1645839749694,106.0,93.319,93.196,59.13297994]
[1645839749896,106.0,93.317,93.196,59.13297994]
[1645839750096,5.95293285,93.318,93.196,59.13297994]
[1645839750097,106.0,93.315,93.196,59.13297994]
[1645839750299,112.0813677,93.314,93.196,59.13297994]
[1645839750496,16.0913,93.31,93.196,59.13297994]
[1645839750701,5.91593334,93.309,93.196,59.13297994]
[1645839750896,46.77104735,93.309,93.196,59.13297994]
[1645839751098,1.43990184,93.307,93.196,59.13297994]
[1645839751301,4.289,93.306,93.197,2.88939649]
[1645839751500,1.43990184,93.307,93.2,16.0907]
[1645839751698,1.43990184,93.307,93.201,108.91658038]
[1645839751898,2.56657499,93.305,93.202,2.50702422]
[1645839752398,24.5838,93.308,93.211,106.0]
[1645839752601,24.5838,93.308,93.212,2.27461209]
[1645839753000,24.5838,93.308,93.213,2.86292427]
[1645839753001,2.57207707,93.307,93.213,2.86292427]
[1645839753200,2.57207707,93.307,93.198,2.78535221]
[1645839753400,24.5838,93.308,93.198,2.78535221]
[1645839754703,24.5838,93.308,93.222,2.66162351]
[1645839754903,45.9408,93.34,93.222,2.66162351]
[1645839755106,45.9408,93.34,93.223,17.28954659]
[1645839755302,45.9408,93.34,93.224,162.98373759]
[1645839755503,45.9408,93.34,93.225,2.8882692]
[1645839755702,45.9408,93.34,93.226,106.0]
[1645839755902,45.9408,93.34,93.227,2.63889154]
[1645839756403,45.9408,93.34,93.229,2.47468624]
[1645839756604,48.51287707,93.34,93.231,106.0]
[1645839756803,48.51287707,93.34,93.232,2.66596365]
[1645839757021,18.00527282,93.339,93.232,5.52888792]
[1645839757223,1.76579038,93.338,93.233,2.86292427]
[1645839757423,4.33786745,93.338,93.233,2.86292427]
[1645839757627,21.05124229,93.337,93.233,2.86292427]
[1645839758023,2.57207707,93.336,93.233,2.86292427]
[1645839758224,20.57734989,93.336,93.233,2.86292427]
[1645839758426,20.89878257,93.335,93.24,16.0832]
[1645839758627,27.75785964,93.335,93.24,16.0832]
[1645839758825,2.57207707,93.334,93.241,3.11160662]
[1645839759026,41.47613246,93.334,93.241,3.11160662]
[1645839759225,23.47085964,93.334,93.241,3.11160662]
[1645839759428,25.30268853,93.333,93.241,3.11160662]
[1645839759725,2.57207707,93.332,93.241,3.11160662]
[1645839759927,20.57734989,93.332,93.241,3.11160662]
[1645839760326,2.57207707,93.331,93.241,3.11160662]
[1645839761726,27.11524297,93.331,93.226,2.4993895]
[1645839761926,1.85717676,93.33,93.226,2.4993895]
[1645839762326,19.86244958,93.33,93.226,2.4993895]
[1645839762527,20.58536758,93.33,93.226,2.4993895]
[1645839762729,1.76462808,93.329,93.226,2.4993895]
[1645839763326,20.2437933,93.329,93.226,2.4993895]
[1645839763527,1.71236036,93.328,93.23,16.0863]
[1645839763729,1.71236036,93.328,93.231,2.84139102]
[1645839764027,22.73061146,93.327,93.231,2.84139102]
[1645839764927,1.50046407,93.326,93.231,2.34139102]
[1645839765128,4.08055883,93.326,93.231,2.34139102]
[1645839765628,2.58009476,93.326,93.231,108.61770318]
[1645839765828,45.9408,93.34,93.241,108.73076985]
[1645839766028,4.288,93.354,93.242,3.10848801]
[1645839766228,22.73061146,93.376,93.244,2.64045636]
[1645839766628,1.63506662,93.375,93.247,3.11437571]
[1645839766828,25.31070622,93.376,93.271,106.0]
[1645839767029,22.73061146,93.384,93.274,106.0]
[1645839767229,22.73061146,93.384,93.276,106.0]
[1645839767429,22.73061146,93.384,93.277,2.34675761]
[1645839767630,1.43582156,93.383,93.277,2.34675761]
[1645839767832,1.43582156,93.383,93.278,2.86292427]
[1645839768129,22.73061146,93.384,93.278,2.86292427]
[1645839768629,22.73061146,93.384,93.29,16.0751]
[1645839769233,22.73061146,93.384,93.29,18.75842059]
[1645839770320,12.67947854,93.383,93.291,2.33473035]
[1645839770519,12.67947854,93.383,93.27,16.0789]
[1645839770520,1.80092498,93.382,93.27,16.0789]
[1645839770718,16.80370173,93.382,93.249,2.78257606]
[1645839771019,1.7462341,93.38,93.262,2.82679351]
[1645839771320,23.1868272,93.379,93.263,58.54575959]
[1645839771518,5.77328114,93.378,93.263,58.54575959]
[1645839771718,31.5402031,93.378,93.264,2.45684449]
[1645839771919,39.10209019,93.377,93.264,2.45684449]
[1645839772119,6.09534062,93.376,93.264,2.45684449]
[1645839772319,41.9133955,93.376,93.264,2.45684449]
[1645839772519,4.37627468,93.375,93.264,2.45684449]
[1645839772721,4.285,93.374,93.264,2.45684449]
[1645839772924,6.86509476,93.374,93.264,2.45684449]
[1645839773119,1.60040464,93.372,93.264,108.45684449]
[1645839773321,1.60040464,93.372,93.265,3.03971105]
[1645839773623,26.30759476,93.373,93.265,3.03971105]
[1645839773822,26.30759476,93.373,93.266,2.86292427]
[1645839774620,26.30759476,93.373,93.271,106.0]
[1645839774821,26.30759476,93.373,93.272,2.52887162]
[1645839775221,26.30759476,93.373,93.273,2.86292427]
[1645839775620,14.93978617,93.372,93.263,58.54575959]
[1645839775822,1.49480054,93.371,93.263,58.54575959]
[1645839776021,1.49480054,93.371,93.264,3.05929636]
[1645839776022,4.285,93.37,93.264,3.05929636]
[1645839776222,2.58009476,93.371,93.264,3.05929636]
[1645839776621,6.42711839,93.387,93.271,106.0]
[1645839776821,2.58009476,93.404,93.272,2.47317055]
[1645839776822,1.58995645,93.385,93.272,2.47317055]
[1645839777023,4.16968252,93.385,93.266,2.84137979]
[1645839777225,18.08011621,93.384,93.181,5.0]
[1645839777423,5.0,93.357,93.184,2.61623219]
[1645839777623,16.0901,93.32,93.21,16.087]
[1645839777827,77.7696,93.356,93.211,3.06577596]
[1645839777828,48.705,93.319,93.211,3.06577596]
[1645839778224,29.50955049,93.338,93.212,44.73950532]
[1645839778425,29.50955049,93.338,93.213,26.12152611]
[1645839778624,29.50955049,93.338,93.241,106.0]
[1645839778827,29.50955049,93.338,93.243,106.0]
[1645839779026,48.705,93.369,93.244,2.26968962]
[1645839779228,48.705,93.369,93.246,106.0]
[1645839779426,1.74276906,93.409,93.261,106.0]
[1645839779628,49.71532244,93.409,93.263,106.0]
[1645839779827,49.71532244,93.409,93.262,6.68115246]
[1645839779828,15.01990866,93.408,93.3,16.0728]
[1645839780028,15.01990866,93.408,93.301,50.53863964]
[1645839780326,1.62673423,93.407,93.301,47.64402343]
[1645839780531,1.62521984,93.406,93.301,47.64402343]
[1645839780726,4.284,93.405,93.301,47.64402343]
[1645839780926,5.77603529,93.405,93.301,47.64402343]
[1645839781226,9.97749648,93.404,93.301,47.64402343]
[1645839781429,16.0758,93.4,93.301,47.64402343]
[1645839781627,1.35131594,93.399,93.301,47.64402343]
[1645839782028,4.284,93.403,93.302,106.0]
[1645839782329,49.71569999,93.409,93.303,2.43800746]
[1645839782729,49.71569999,93.409,93.304,4.284]
[1645839783131,48.0126,93.409,93.311,106.0]
[1645839783330,48.0126,93.409,93.312,2.53555434]
[1645839784630,48.0126,93.409,93.331,53.53270683]
[1645839787231,48.0126,93.409,93.332,2.32132135]
[1645839787937,48.0126,93.409,93.331,53.53270683]
[1645839789335,48.0126,93.409,93.302,15.808]
[1645839789336,17.98354409,93.408,93.27,53.5794]
[1645839789535,107.6944159,93.407,93.267,2.49565936]
[1645839789737,1.5770633,93.406,93.267,2.49565936]
[1645839790138,4.285,93.405,93.267,2.49565936]
[1645839790335,34.42175749,93.405,93.268,59.37032155]
[1645839790538,1.40480528,93.404,93.269,106.0]
[1645839790760,16.0758,93.4,93.271,106.0]
[1645839791039,6.0042165,93.399,93.272,2.52835369]
[1645839791237,1.63787239,93.398,93.272,2.52835369]
[1645839791439,4.285,93.418,93.281,5.0]
[1645839791641,2.57972607,93.414,93.281,111.0]
[1645839791838,2.57972607,93.414,93.282,2.28507345]
[1645839792039,2.57972607,93.414,93.282,5.14799772]
[1645839792439,2.57972607,93.414,93.29,16.0758]
[1645839792637,2.57972607,93.414,93.291,108.8452482]
[1645839792839,2.57972607,93.414,93.292,2.6488344]
[1645839793041,2.57972607,93.414,93.293,106.0]
[1645839793239,2.57972607,93.414,93.294,2.84625769]
[1645839793641,2.57972607,93.414,93.296,3.01451808]
[1645839793838,24.00101716,93.408,93.298,106.0]
[1645839794040,26.58074323,93.408,93.299,2.33480468]
[1645839794441,26.58074323,93.408,93.32,16.0698]
[1645839794641,24.00101716,93.407,93.32,16.0698]
[1645839795644,4.07953335,93.406,93.3,16.0735]
[1645839796044,24.84717222,93.405,93.3,16.0735]
[1645839796344,1.85176313,93.404,93.3,16.0735]
[1645839796542,1.61122636,93.403,93.3,16.0735]
[1645839796740,28.19187165,93.403,93.3,16.0735]
[1645839796940,4.01571447,93.402,93.3,16.0735]
[1645839797142,21.99925856,93.402,93.3,16.0735]
[1645839797342,3.95493072,93.401,93.3,16.0735]
[1645839797540,1.48429456,93.399,93.3,16.0735]
[1645839797740,1.48429456,93.399,93.301,106.0]
[1645839797942,4.284,93.401,93.32,16.0708]
[1645839798139,2.57962813,93.414,93.32,16.0708]
[1645839798544,1.69180556,93.408,93.32,16.0708]
[1645839799347,1.69180556,93.408,93.321,106.0]
[1645839799548,17.98354409,93.418,93.322,2.7188714]
[1645839799848,10.65474997,93.433,93.322,2.7188714]
[1645839799849,2.57962813,93.434,93.333,106.0]
[1645839800047,24.00101716,93.437,93.334,3.05040834]
[1645839800546,46.8369,93.439,93.335,2.86292427]
[1645839800747,24.00101716,93.452,93.335,2.86292427]
[1645839801551,24.00101716,93.452,93.341,106.0]
[1645839801847,24.00101716,93.452,93.342,2.39988268]
[1645839802247,24.00101716,93.452,93.336,106.0]
[1645839802448,24.00101716,93.452,93.343,2.86292427]
[1645839802647,24.0797,93.451,93.343,2.86292427]
[1645839803050,24.00101716,93.45,93.343,2.86292427]
[1645839803547,24.00101716,93.45,93.371,56.96737393]
[1645839806866,24.0797,93.451,93.371,56.96737393]
[1645839807269,2.57962813,93.449,93.371,56.96737393]
[1645839807465,4.33073417,93.449,93.371,56.96737393]
[1645839807866,2.57962813,93.448,93.371,56.96737393]
[1645839808466,1.57962813,93.448,93.371,56.96737393]
[1645839808666,1.75110604,93.449,93.371,56.96737393]
[1645839808667,23.74175847,93.447,93.371,56.96737393]
[1645839808866,1.4166464,93.446,93.371,56.96737393]
[1645839809069,4.282,93.445,93.371,56.96737393]
[1645839809271,4.10000984,93.445,93.371,56.96737393]
[1645839809567,15.92435833,93.444,93.371,56.96737393]
[1645839809765,1.48128677,93.443,93.371,56.96737393]
[1645839809966,18.80342956,93.443,93.371,56.96737393]
[1645839810166,1.51075985,93.442,93.371,56.96737393]
[1645839810365,17.85011725,93.442,93.371,56.96737393]
[1645839810565,1.7469062,93.441,93.371,56.96737393]
[1645839810766,13.52565111,93.441,93.371,56.96737393]
[1645839810965,13.52565111,93.441,93.334,24.7069]
[1645839810966,1.66618757,93.44,93.334,24.7069]
[1645839811165,18.98833036,93.44,93.334,24.7069]
[1645839811367,4.21690284,93.439,93.334,24.7069]
[1645839811765,26.87525586,93.438,93.334,24.7069]
[1645839811975,1.36402003,93.437,93.335,43.09028706]
[1645839812169,1.36402003,93.437,93.336,106.0]
[1645839812367,24.2983,93.438,93.337,2.69921854]
[1645839812766,24.2983,93.438,93.341,106.0]
[1645839812967,24.2983,93.438,93.342,2.41043489]
[1645839814581,24.2983,93.438,93.36,16.0635]
[1645839815379,24.2983,93.438,93.361,106.0]
[1645839815579,24.2983,93.438,93.361,108.85376855]
[1645839815780,1.82739703,93.461,93.37,16.0615]
[1645839815979,1.82739703,93.461,93.371,45.34278519]
[1645839816181,1.82739703,93.461,93.371,151.34278519]
[1645839816383,22.5985,93.465,93.371,151.34278519]
[1645839816680,1.42311982,93.464,93.371,45.34278519]
[1645839817183,21.16213034,93.463,93.371,48.43153558]
[1645839817381,21.16213034,93.463,93.38,16.0598]
[1645839817782,21.16213034,93.463,93.381,106.0]
[1645839818480,21.16213034,93.463,93.38,16.0598]
[1645839818880,22.5985,93.465,93.38,16.0598]
[1645839819685,38.937,93.465,93.38,16.0598]
[1645839823587,38.937,93.465,93.38,122.0598]
[1645839823784,38.937,93.465,93.381,106.0]
[1645839823986,38.937,93.465,93.382,3.00709065]
[1645839824789,38.937,93.465,93.372,6.79073116]
[1645839824988,38.937,93.465,93.373,106.0]
[1645839825188,38.937,93.465,93.371,45.34278519]
[1645839825189,38.937,93.465,93.375,106.0]
[1645839825389,38.937,93.465,93.376,3.00883285]
[1645839825589,38.937,93.465,93.39,16.0583]
[1645839825795,3.97999915,93.464,93.371,45.34278519]